Cogmind - Beta 13 @@@ ROGUE MODE // 2024.04.01 @ 15:13:33 Player: iromakkem Result: Destroyed by D-53 Grenadier with Mini Grenade Launcher Performance ------------- Evolutions (0) 0 Regions Visited (4) 800 Robots Destroyed (8) 40 Value Destroyed (140) 140 Prototype IDs (0) 0 Alien Tech Used (0) 0 Bonus (0) 0 TOTAL SCORE: 980 Bonus ------- None Cogmind --------- Core Integrity 0/250 Matter 242/300 Energy 100/100 System Corruption 0% Temperature Cool (0) Movement Core (100) Ox1 Location -9/Mines Parts ------- > --- POWER (1) -------- (None) > --- PROPULSION (2) --- (None) > --- UTILITY (2) ------ Small Storage Unit > --- WEAPON (2) ------- (None) > --- INVENTORY (8) ---- Nuclear Core Reinforced Deuterium Engine Aluminum Leg Aluminum Leg Hardened Heavy Armor Plating Peak State ------------ > --- POWER ------------ Light Ion Engine > --- PROPULSION ------- Aluminum Leg Aluminum Leg > --- UTILITY ---------- Small Storage Unit Kinecellerator > --- WEAPON ----------- Flak Gun Rocket Launcher > --- INVENTORY -------- Nuclear Core Reinforced Deuterium Engine Aluminum Leg Aluminum Leg Hardened Heavy Armor Plating Assault Rifle Grenade Launcher [Rating: 15] Favorites ----------- Power Light Ion Engine Engine Light Ion Engine Propulsion Aluminum Leg Leg Aluminum Leg Utility Small Storage Unit Device Sensor Array Storage Small Storage Unit Weapon Assault Rifle Energy Gun Small Laser Energy Cannon Beam Cannon Ballistic Gun Assault Rifle Launcher Rocket Launcher Special Weapon Mining Laser Build | -11 -10 -10 -10 -9 ------- Run | Yrd Mat Min Exi Min Slots Evolved . | . . . . . Power . | . . . . . Propulsion . | . . . . . Utility . | . . . . . Weapon . | . . . . . Parts Attached 21 | 6 7 1 . 7 Power 4 | 1 1 1 . 1 Engine 4 | 1 1 1 . 1 Core . | . . . . . Reactor . | . . . . . Propulsion 2 | 2 . . . . Treads . | . . . . . Leg 2 | 2 . . . . Wheel . | . . . . . Hover . | . . . . . Flight . | . . . . . Utility 3 | 1 1 . . 1 Device 2 | . 1 . . 1 Storage 1 | 1 . . . . Processor . | . . . . . Hackware . | . . . . . Protection . | . . . . . Artifact . | . . . . . Weapon 12 | 2 5 . . 5 Energy Gun 1 | . 1 . . . Energy Cannon 2 | . 2 . . . Ballistic Gun 6 | 2 1 . . 3 Ballistic Cannon . | . . . . . Launcher 2 | . . . . 2 Special Weapon 1 | . 1 . . . Impact Weapon . | . . . . . Slashing Weapon . | . . . . . Piercing Weapon . | . . . . . Special Melee Weapon . | . . . . . Unidentified Prototypes . | . . . . . Parts Lost 8 | . . . . 8 Power 1 | . . . . 1 Propulsion 2 | . . . . 2 Utility 1 | . . . . 1 Weapon 4 | . . . . 4 Highest Loss Streak 8 | . . . . 8 To Critical Strikes . | . . . . . Average Slot Usage (%) 95 | . 97 100 100 89 Engine 13 | . 14 14 14 11 Leg 27 | . 28 28 28 25 Device 12 | . 12 14 14 11 Storage 14 | . 14 14 14 14 Energy Cannon 8 | . 9 14 14 2 Ballistic Gun 16 | . 15 14 14 20 Naked Turns . | . . . . . Heaviest Build 20 | 12 14 14 14 20 Greatest Support 20 | 20 20 20 20 20 Greatest Overweight (x) 2 | . . . . 2 Average Overweight (x) . | . . . . . Largest Inventory Capacity 8 | 8 8 8 8 8 Average Capacity 7 | 6 8 8 8 8 Most Carried 8 | 6 8 8 8 8 Average Carried 7 | 4 7 8 7 7 Final Capacity 8 | 8 8 8 8 8 Final Carried 8 | 6 8 8 8 6 Class Distribution -------------------- 100% | Mutant Dominant Class ---------------- Mutant | -10/Materials Mutant | -10/Mines Mutant | -10/Exiles Mutant | -9/Mines Resources | -11 -10 -10 -10 -9 ----------- Run | Yrd Mat Min Exi Min Matter Collected 473 | 288 105 15 . 65 Remotely . | . . . . . Salvage Created 232 | 88 99 45 . . Parts 17 | 3 7 7 . . Haulers Intercepted . | . . . . . Recyclers Shooed 3 | 1 . . . 2 Parts Field Recycled . | . . . . . Retrieved Matter . | . . . . . Parts Self-Destructed . | . . . . . Prevented . | . . . . . Kills | -11 -10 -10 -10 -9 ------- Run | Yrd Mat Min Exi Min Combat Hostiles Destroyed 5 | . 2 3 . . Guns 2 | . 1 1 . . Cannons 3 | . 1 2 . . Classes Destroyed 5 | 2 2 1 . . Tunneler 1 | 1 . . . . Recycler 1 | 1 . . . . Watcher 1 | . 1 . . . Swarmer 3 | . . 3 . . Grunt 2 | . 2 . . . Best Kill Streak 3 | 2 1 3 . . Combat Bots Only 3 | . 1 3 . . Max Kills in Single Turn 1 | 1 1 1 . . Gunslinging . | . . . . . Exploded . | . . . . . Melee . | . . . . . Uniques/NPCs Destroyed . | . . . . . Combat | -11 -10 -10 -10 -9 -------- Run | Yrd Mat Min Exi Min Hostile Shots Fired 43 | . 7 14 . 22 Missed 9 | . 3 6 . . Damage Taken 1041 | . 60 64 . 917 Core 255 | . . 18 . 237 Absorbed by Shields . | . . . . . Core Remaining (%) 100 | 100 . . . . Volleys Fired 25 | 5 9 5 . 6 Largest 2 | 2 2 2 . 2 Hottest 80 | 40 80 80 . 61 Shots Fired 49 | 10 18 10 . 11 Gun 34 | 10 13 5 . 6 Cannon 10 | . 5 5 . . Launcher 5 | . . . . 5 Special . | . . . . . Kinetic 34 | 10 13 5 . 6 Thermal 10 | . 5 5 . . Explosive 5 | . . . . 5 Electromagnetic . | . . . . . Robot Hit Streak 5 | 3 5 2 . 4 Robot Miss Streak 12 | 1 2 2 . 12 Penetration Max . | . . . . . Secondary Targets . | . . . . . Shots Hit Robots 24 | 6 9 4 . 5 Core Hits 25 | 3 6 3 . 13 Critical Kills . | . . . . . Critical Parts Destroyed . | . . . . . Critical Strikes . | . . . . . Melee Attacks . | . . . . . Impact . | . . . . . Slashing . | . . . . . Piercing . | . . . . . Sneak Attacks . | . . . . . Combat Hostiles . | . . . . . Follow-up Attacks . | . . . . . Damage Inflicted 499 | 85 133 98 . 183 Guns 287 | 85 74 27 . 101 Cannons 125 | . 54 71 . . Explosions 82 | . . . . 82 Melee . | . . . . . Ramming 5 | . 5 . . . Kinetic 287 | 85 74 27 . 101 Thermal 125 | . 54 71 . . Explosive 82 | . . . . 82 Electromagnetic . | . . . . . Impact . | . . . . . Slashing . | . . . . . Piercing . | . . . . . Highest Corruption . | . . . . . Average Corruption . | . . . . . Corruption Purged . | . . . . . Corruption Blocked . | . . . . . Overload Shots . | . . . . . Overflow Damage . | . . . . . Projectiles . | . . . . . Explosions . | . . . . . Melee . | . . . . . Knockbacks . | . . . . . Impact . | . . . . . Kinetic . | . . . . . Secondary . | . . . . . Self-Inflicted Damage 30 | . . . . 30 Shots 1 | . . . . 1 Rammed . | . . . . . Targets Rammed 2 | 1 1 . . . Kicked 2 | 1 1 . . . Crushed . | . . . . . Highest Temperature 90 | . 63 90 . 10 Average Temperature 32 | . 30 46 . 5 Received Heat Transfer 33 | . 33 . . . Siege Activations . | . . . . . Robots Corrupted . | . . . . . Combat Hostiles . | . . . . . Parts Fried . | . . . . . Impact Corruptions . | . . . . . Robots Melted . | . . . . . Combat Hostiles . | . . . . . Parts Melted 1 | . 1 . . . Heat Transferred 259 | . 111 148 . . Parts Sabotaged . | . . . . . Parts Stolen . | . . . . . Parts Stripped . | . . . . . Power Chain Reactions . | . . . . . Alert | -11 -10 -10 -10 -9 ------- Run | Yrd Mat Min Exi Min Peak Influence 100 | 10 78 100 . 4 Initial 30 | . 6 30 . . Average 25 | 6 49 85 . . Maximum Alert Level . | . . . . . Low Security (%) 100 | 100 100 100 . 100 Level 1 . | . . . . . Level 2 . | . . . . . Level 3 . | . . . . . Level 4 . | . . . . . Level 5 . | . . . . . High Security . | . . . . . Max Security . | . . . . . Squads Dispatched 2 | . 1 . . 1 Investigation 1 | . . . . 1 Extermination . | . . . . . Reinforcement 1 | . 1 . . . Assault . | . . . . . Garrison . | . . . . . Intercept . | . . . . . Searches Triggered . | . . . . . Construction Impeded . | . . . . . Haulers Reinforced . | . . . . . Active Scanning Responses . | . . . . . Cargo Convoy Interrupts . | . . . . . Stealth | -11 -10 -10 -10 -9 --------- Run | Yrd Mat Min Exi Min Distress Signals 1 | . 1 . . . Communications Jammed . | . . . . . Distress Signals . | . . . . . Times Spotted 16 | . 5 3 . 8 Peak Tracking Total 6 | . 2 3 . 6 Tactical Retreats 1 | . 1 . . . Traps | -11 -10 -10 -10 -9 ------- Run | Yrd Mat Min Exi Min Traps Triggered 1 | . 1 . . . Indirectly . | . . . . . Trap Hack Attempts . | . . . . . Triggered . | . . . . . Disarmed . | . . . . . Reprogrammed . | . . . . . Reused . | . . . . . Traps Extracted . | . . . . . Installed . | . . . . . Triggered . | . . . . . Machines | -11 -10 -10 -10 -9 ---------- Run | Yrd Mat Min Exi Min Machines Disabled . | . . . . . Max in Single Turn . | . . . . . Machines Repaired . | . . . . . Machines Dismantled . | . . . . . Machines Sabotaged . | . . . . . Overloaded Fab Kills . | . . . . . Hacking | -11 -10 -10 -10 -9 --------- Run | Yrd Mat Min Exi Min Machines Accessed 1 | . . . . 1 Terminals . | . . . . . Fabricators . | . . . . . Repair Stations . | . . . . . Recycling Units . | . . . . . Scanalyzers . | . . . . . Garrison Access . | . . . . . Total Hacks 1 | . . . . 1 Successful 1 | . . . . 1 Failed . | . . . . . Catastrophic . | . . . . . Database Lockouts . | . . . . . Manual . | . . . . . Terminals . | . . . . . Fabricators . | . . . . . Repair Stations . | . . . . . Recycling Units . | . . . . . Scanalyzers . | . . . . . Garrison Access . | . . . . . Terminal Hacks 1 | . . . . 1 Open Door 1 | . . . . 1 Fabricator Hacks . | . . . . . Repair Station Hacks . | . . . . . Recycling Unit Hacks . | . . . . . Scanalyzer . | . . . . . Garrison Access Hacks . | . . . . . Unauthorized Hacks . | . . . . . Terminals . | . . . . . Fabricators . | . . . . . Repair Stations . | . . . . . Recycling Units . | . . . . . Scanalyzers . | . . . . . Garrison Access . | . . . . . Data Cores Recovered . | . . . . . Used . | . . . . . Hacking Detections . | . . . . . Full Trace Events . | . . . . . Feedback Events . | . . . . . Feedback Blocked . | . . . . . Robot Schematics Acquired . | . . . . . Robots Built . | . . . . . Authchips . | . . . . . Time . | . . . . . Total Robot Build Rating . | . . . . . Part Schematics Acquired . | . . . . . Parts Built . | . . . . . Authchips . | . . . . . Time . | . . . . . Total Part Build Rating . | . . . . . Parts Repaired . | . . . . . Time . | . . . . . Parts Recycled . | . . . . . Recycled Matter . | . . . . . Retrieved Matter . | . . . . . Retrieved Components . | . . . . . Parts Scanalyzed . | . . . . . Part Schematics Acquired . | . . . . . Parts Damaged . | . . . . . Bothacking | -11 -10 -10 -10 -9 ------------ Run | Yrd Mat Min Exi Min Used RIF Installer . | . . . . . Robots Hacked . | . . . . . Non-combat . | . . . . . Combat . | . . . . . Robot Hacks Applied . | . . . . . Relay Couplers Released . | . . . . . Fabnet Peak Effective % . | . . . . . Robots Rewired . | . . . . . Allies Hacked . | . . . . . Hacks Repelled . | . . . . . Allies | -11 -10 -10 -10 -9 -------- Run | Yrd Mat Min Exi Min Total Allies . | . . . . . Largest Group . | . . . . . Highest-Rated Group . | . . . . . Highest-Rated Ally . | . . . . . Total Orders . | . . . . . Ally Attacks . | . . . . . Total Damage . | . . . . . Kills . | . . . . . Allies Corrupted . | . . . . . Allies Melted . | . . . . . Intel | -11 -10 -10 -10 -9 ------- Run | Yrd Mat Min Exi Min Robot Analysis Total . | . . . . . Derelict Logs Recovered 1 | . . . . 1 Drone Launches . | . . . . . Drone Recoveries . | . . . . . Exploration | -11 -10 -10 -10 -9 ------------- Run | Yrd Mat Min Exi Min Turns Passed 779 | 169 242 40 144 184 Spaces Moved 545 | 121 161 20 117 126 Core 22 | 13 . . . 9 Treads . | . . . . . Legs 523 | 108 161 20 117 117 Wheels . | . . . . . Hover . | . . . . . Flight . | . . . . . Fastest Speed 50 | 50 120 120 120 100 Average Speed 118 | 112 120 120 120 121 Slowest Speed 150 | 120 120 120 120 150 Overloaded Moves . | . . . . . Propulsion Burnouts . | . . . . . Robots Hopped . | . . . . . Cave-ins Triggered . | . . . . . Exploration Rate (%) 17 | 5 32 4 14 31 Regions Visited 4 Branch Regions 3 Pre-discovered Areas . | . . . . . Known Exits Taken . | . . . . . Unknown Exits Taken 4 | 1 1 1 1 . Scrap Searched . | . . . . . Spaces Dug . | . . . . . Terrain Destroyed 21 | . . . . 21 Melee . | . . . . . Projectile . | . . . . . AOE 21 | . . . . 21 Terrain Rammed . | . . . . . Walls Destroyed . | . . . . . Machines Disabled . | . . . . . Actions | -11 -10 -10 -10 -9 --------- Run | Yrd Mat Min Exi Min Total 630 | 143 192 26 122 147 Wait . | . . . . . Move 541 | 120 160 19 116 126 Hop . | . . . . . Pick Up 25 | 11 9 . 3 2 Fast Attach 7 | 1 2 1 . 3 Attach 12 | 5 3 . . 4 Detach . | . . . . . Swap 2 | . 2 . . . Drop 16 | . 6 1 3 6 Fire 25 | 5 9 5 . 6 Melee . | . . . . . Ram . | . . . . . Kick 2 | 1 1 . . . Crush . | . . . . . Escape Stasis . | . . . . . Rewire . | . . . . . Trap . | . . . . . Miscellaneous . | . . . . . Route ------- -11/Scrapyard -10/Materials (discovered 2 exits: [*Min x2]) -10/Mines -10/Exiles -9/Mines History --------- Turn | Location | Event 11 | -11/Scrapyard | Discovered new exit (range 15) 170 | -11/Scrapyard | Entered Materials 226 | -10/Materials | Discovered new exit (range 8) 300 | -10/Materials | Discovered new exit (range 16) 317 | -10/Materials | Build established: Mutant 412 | -10/Materials | Entered Mines 445 | -10/Mines | Deemed a non-threat by the Exiles lab entrance 446 | -10/Mines | Discovered new exit (range 5) 452 | -10/Mines | Entered Exiles 487 | -10/Exiles | Met 8R-AWN 524 | -10/Exiles | Discovered new exit (range 15) 596 | -10/Exiles | Entered Mines 603 | -9/Mines | Met a Derelict shopkeep closing up shop 647 | -9/Mines | Learned Materials interactive machine intel 699 | -9/Mines | Assembled infested the area 723 | -9/Mines | Received a Rocket Launcher from a helpful Derelict 765 | -9/Mines | Core integrity fell below 50% 771 | -9/Mines | Core integrity fell below 20% 780 | -9/Mines | Destroyed by D-53 Grenadier with Mini Grenade Launcher Last Messages --------------- 00753_ K-01 Serf collects debris. 00754_ Lgt. Ion Engine destroyed. 00756_ K-01 Serf collects debris. 00757_ The unstable cave ceiling collapses. 00758_ Kinecellerator destroyed. 00760_ The unstable cave ceiling collapses. 00760_ Flak Gun destroyed. 00760_ K-01 Serf collects debris. 00763_ Rocket Launcher destroyed. 00763_ Aluminum Leg destroyed. 00764_ The unstable cave ceiling collapses. 00764_ K-01 Serf collects debris. 00766_ Aluminum Leg destroyed. 00768_ The unstable cave ceiling collapses. 00769_ K-01 Serf collects debris. 00770_ The unstable cave ceiling collapses. 00775_ Assault Rifle destroyed. 00777_ The unstable cave ceiling collapses. 00778_ Grenade Launcher destroyed. 00778_ U-05 Engineer lays Concrete. Map ----- +----------------------------------------------------+ | ?????????????????????????????????????????????????? | | ?????????????????????????????????????????????????? | | ?????????????????????????????????????????????????? | | ?????????????????????????????????????????????????? | | ?????????????????????????????????????????????????? | | ?????????????????????????????????????????????????? | | ?????????????????????????????????????????????????? | | ?????????????????????????????????????????????????? | | ?????????????????????????????????????????????????? | | ?????????????????????????????????????????????????? | | ?????????????????????????????????????????????????? | | ?????????????????????????????????????????????????? | | ?????????????????????????????????????????????????? | | ??????????????????????????????????? ?????????????? | | ??????????????????????????????????? ???????????? | | ?????????????????????????????????? ?????????? | | ?????????????????????????????????? ?????????? | | ?????????????????????????????????? #?????????? | | ?????????????????#???????????????#u #??????????? | | ?????????????????# ???????????###% #???????????? | | ?????????????????# ?##?####??## ###?????????? | | ?????? ####??????# ## ## #### % ## ??????? | | ??????? ???# ??????? | | ??????????# ## # ?????? | | ??????????# # ?????? | | ?????????????????# @ # ????? | | ?????????????????# d ????? | | ?????????????????# d ????? | | ?????????????????## # #???? | | ??????????????????# #??? | | ??????????????????# #### # # #?? | | ??????????????????# #??### ?????? | | ??????????????????# #????##### #### #??????? | | ?????????????????? #???????## #?????#??????? | | ????????????????? ????????# #??#?????????? | | ????????????????#####??????# # ## #?????????? | | ??????????????????????????# ### #?????????? | | ??????????????????????????## #??# ####?????????? | | ???????????????????????????###???# #????????????? | | ?????????????????????############# #????????????? | | ?????????????????????# #????????????? | | ????##???????????????# #????????????? | | ???# ???????????????# #############????????????? | | ??? ???????????????# #????????????????????????? | | ??? #???????????????# #????????????????????????? | | ??# #???????????????# #????????????????????????? | | ??# #???????????????# #????????????????????????? | | ??# #???????????????# #????????????????????????? | | ??# #???????????????# #???????#????????????????? | | ??# #???????????????# #?????? ##???????????????? | +----------------------------------------------------+ Best States ------------- Heat Dissipation 25 Energy Generation 10 Energy Capacity 125 Matter Stores 300 Matter Capacity 300 Sight Range 16 Robot Scan Range 14 Terrain Scan Density 10 Evasion (%) 55 Kinecelleration 30 Item Schematics ----------------- None Robot Schematics ------------------ None Fabricated ------------ Nothing Alien Tech Used ----------------- None Achievements -------------- Tourist Challenges ------------ None Game ------ Seed MultinovaCouplerSword Manual? 0 Play Time 00:23:46 Cumulative 2.8 hours Start 2024.04.01 @ 14:16:23 End 2024.04.01 @ 15:13:33 Sessions 1 Manual Loads 0 Difficulty Rogue Special Mode None Game No. 4 Rogue 4 Adventurer 0 Explorer 0 Win Type - Total 0 Types 0/0/0/0/0/0/0/0/0 Lore% 1 Gallery% 6 Achievement% 5 Wizard Run 0 Options --------- Layout 1 ASCII 0 Keyboard 0 Movement Mouse Keybinds 0 Fullscreen 1 Font 32/SmallcapsGlow Map View 50x35 Zoom Use 0% Tactical HUD 1 Map Filters NONE Filters NONE Steam 1 RUN: 23bc7739-72c7-4c99-b0cb-08cc6c5aa31d